bitfinex/quotes_SOLUSD_20251025
["timestamp","ask_amount","ask_price","bid_price","bid_amount"]
[1761399858735,50.0,192.82,192.79,0.72]
[1761399859324,50.66,192.82,192.79,0.72]
[1761399859943,50.66,192.82,192.79,5.9067774]
[1761399862850,52.60902634,192.82,192.79,5.9067774]
[1761399863864,52.60902634,192.82,192.79,5.1867774]
[1761399864035,0.7,192.81,192.79,5.1867774]
[1761399865549,50.0,192.82,192.79,5.1867774]
[1761399865857,52.64902634,192.82,192.79,5.8867774]
[1761399866752,52.64902634,192.82,192.79,5.1867774]
[1761399867053,0.7,192.81,192.79,5.1867774]
[1761399869355,52.64902634,192.82,192.79,5.8867774]
[1761399870146,0.7,192.81,192.79,5.1867774]
[1761399870340,51.94902634,192.82,192.79,5.1867774]
[1761399870538,52.64902634,192.82,192.79,5.8867774]
[1761399870857,50.0,192.82,192.8,0.7]
[1761399872028,50.0,192.82,192.81,35.86]
[1761399872444,50.0,192.82,192.81,36.56]
[1761399872660,50.0,192.82,192.81,41.74645298]
[1761399873941,50.0,192.82,192.81,43.69547932]
[1761399874747,50.0,192.82,192.81,59.26331616]
[1761399876047,50.0,192.82,192.81,57.31428982]
[1761399876249,50.0,192.82,192.81,41.74645298]
[1761399876857,50.0,192.82,192.81,36.56]
[1761399877066,50.7,192.82,192.78,22.88]
[1761399877266,2.64902634,192.81,192.77,41.74752543]
[1761399877456,51.94902634,192.82,192.78,0.7]
[1761399877645,52.64902634,192.82,192.78,0.7]
[1761399878380,52.64902634,192.82,192.79,5.18699102]
[1761399885878,52.64902634,192.82,192.79,0.7]
[1761399886179,50.7,192.82,192.79,0.7]
[1761399886375,50.0,192.82,192.79,0.7]
[1761399886982,50.0,192.82,192.8,35.86]
[1761399887780,50.0,192.82,192.81,5.18645298]
[1761399893590,50.0,192.82,192.81,5.86645298]
[1761399893899,50.0,192.82,192.81,5.18645298]
[1761399894186,50.0,192.82,192.81,41.04645298]
[1761399896189,50.72,192.82,192.81,41.04645298]
[1761399896392,50.0,192.82,192.81,41.04645298]
[1761399901578,52.61902634,192.82,192.79,5.18681028]
[1761399901783,1.94902634,192.8,192.79,5.18681028]
[1761399902177,1.94902634,192.8,192.78,41.04724754]
[1761399902178,2.61902634,192.8,192.78,41.04724754]
[1761399902495,2.61902634,192.8,192.76,0.71]
[1761399902496,2.61902634,192.79,192.76,35.84]
[1761399902699,1.94902634,192.78,192.76,35.84]
[1761399902884,2.61902634,192.78,192.76,35.84]
[1761399903694,2.61902634,192.78,192.76,41.02777551]
[1761399907494,0.67,192.77,192.76,41.02777551]
[1761399907700,2.61902634,192.78,192.76,41.02777551]
[1761399908005,0.67,192.78,192.76,41.02777551]
[1761399908177,0.67,192.8,192.76,42.97680185]
[1761399908378,0.67,192.8,192.77,0.71]
[1761399909291,0.67,192.8,192.76,43.68680185]
[1761399910303,0.67,192.8,192.76,41.73777551]
[1761399910521,0.67,192.8,192.76,41.02777551]
[1761399912504,0.67,192.8,192.76,5.18777551]
[1761399912708,0.67,192.8,192.76,41.04777551]
[1761399913605,0.67,192.8,192.76,41.75777551]
[1761399915113,0.67,192.8,192.76,41.04777551]
[1761399915290,0.67,192.8,192.76,41.75777551]
[1761399917192,0.67,192.8,192.76,35.86]
[1761399918318,2.61902634,192.8,192.76,35.86]
[1761399918526,1.94902634,192.77,192.75,11.65805299]
[1761399918824,59.41,192.79,192.75,11.65805299]
[1761399918825,1.91835227,192.76,192.75,11.65805299]
[1761399919198,0.67,192.76,192.75,11.65805299]
[1761399920307,1.91835227,192.76,192.75,11.65805299]
[1761399925120,37.77835227,192.76,192.75,11.65805299]
[1761399926347,48.65482748,192.76,192.75,11.65805299]
[1761399926508,53.84262577,192.76,192.75,11.65805299]
[1761399926706,69.42663657,192.76,192.75,11.65805299]
[1761399927802,69.92663657,192.76,192.75,11.65805299]
[1761399929130,33.75647521,192.72,192.68,0.1]
[1761399929304,33.75647521,192.69,192.68,0.1]
[1761399929506,35.67482748,192.69,192.68,0.1]
[1761399929726,71.57482748,192.69,192.68,0.1]
[1761399930011,73.65323541,192.69,192.68,0.1]
[1761399930401,78.84291832,192.69,192.68,0.1]
[1761399933324,78.84291832,192.69,192.65,0.1]
[1761399933325,33.75647521,192.66,192.65,0.1]
[1761399933632,71.61482748,192.66,192.65,0.1]
[1761399934135,73.69377553,192.66,192.65,0.1]
[1761399935345,78.88426655,192.66,192.65,0.1]
[1761399935518,73.69377553,192.66,192.65,0.1]
[1761399935834,78.88426655,192.66,192.65,0.1]
[1761399936019,35.83542326,192.66,192.65,0.1]
[1761399936226,71.77542326,192.66,192.65,0.1]
[1761399936542,73.69377553,192.66,192.65,0.1]
[1761399938234,33.75647521,192.66,192.65,0.1]
[1761399938438,10.87647521,192.66,192.65,0.1]
[1761399939312,10.87647521,192.69,192.65,2.01835227]
[1761399939515,10.87647521,192.69,192.66,0.67]
[1761399939731,10.87647521,192.69,192.65,2.01835227]
[1761399939732,11.54647521,192.69,192.65,2.01835227]
[1761399940446,11.54647521,192.69,192.66,0.67]
[1761399940740,10.87647521,192.69,192.65,0.1]
[1761399940942,10.87647521,192.66,192.65,0.1]
[1761399941118,46.85647521,192.66,192.65,0.1]
[1761399941319,35.98,192.66,192.65,0.1]
[1761399941748,22.88,192.67,192.65,0.1]
[1761399942044,58.86,192.67,192.65,0.1]
[1761399943660,35.98,192.67,192.65,0.77]
[1761399944150,35.98,192.67,192.65,0.1]
[1761399944151,12.79482748,192.66,192.65,0.1]
[1761399944458,35.98,192.67,192.65,0.77]
[1761399944644,36.02,192.67,192.65,0.77]
[1761399945025,36.02,192.67,192.65,0.1]
[1761399947150,12.79482748,192.66,192.65,0.1]
[1761399947349,11.54647521,192.66,192.65,0.1]
[1761399947943,10.87647521,192.66,192.65,0.1]
[1761399948751,12.12482748,192.66,192.65,0.1]
[1761399949683,11.54647521,192.66,192.65,0.1]
[1761399949966,37.75355945,192.66,192.65,0.1]
[1761399950156,73.79355945,192.66,192.65,0.1]
[1761399950781,78.98405047,192.66,192.65,0.1]
[1761399952463,77.7356982,192.66,192.65,0.1]
[1761399952778,78.98405047,192.66,192.65,0.1]
[1761399953274,72.54520718,192.66,192.65,0.1]
[1761399953454,71.04482748,192.66,192.65,0.1]
[1761399953656,71.75482748,192.66,192.65,0.1]
[1761399954573,71.04482748,192.66,192.65,0.1]
[1761399954777,48.16482748,192.66,192.65,0.1]
[1761399956046,1.24835227,192.68,192.65,0.1]
[1761399956248,36.04,192.67,192.65,0.1]
[1761399957052,46.91647521,192.67,192.65,0.1]
[1761399957483,47.62647521,192.67,192.65,0.1]
[1761399958057,36.04,192.66,192.65,0.1]
[1761399958765,36.04,192.66,192.65,0.79]
[1761399959387,36.04,192.66,192.65,0.1]
[1761399960981,41.23200387,192.69,192.65,5.98071842]
[1761399961379,36.04,192.69,192.66,0.69]
[1761399963076,36.7,192.69,192.65,0.1]
[1761399963278,36.7,192.69,192.65,0.79]
[1761399963482,36.04,192.69,192.65,0.79]
[1761399964588,36.04,192.69,192.65,5.98065756]
[1761399964773,36.04,192.69,192.66,0.69]
[1761399970377,36.7,192.69,192.66,0.69]
[1761399978900,36.04,192.69,192.66,0.69]
[1761399979692,0.66,192.68,192.65,0.1]
[1761399979901,0.66,192.68,192.65,0.79]
[1761399980094,2.6116397,192.68,192.65,0.79]
[1761399980702,38.6516397,192.69,192.65,0.79]
[1761399981905,22.88,192.71,192.65,0.79]
[1761399982090,10.87647521,192.7,192.65,0.79]
[1761399982701,11.53647521,192.7,192.65,5.98067453]
[1761399983187,11.53647521,192.7,192.66,0.65]
[1761399984905,11.53647521,192.7,192.65,0.1]
[1761399984906,2.6116397,192.69,192.65,0.1]
[1761399985302,2.6116397,192.68,192.65,0.1]
[1761399985490,2.6116397,192.68,192.65,0.75]
[1761399985686,37.9516397,192.68,192.65,0.1]
[1761399985902,1.9516397,192.66,192.65,0.1]
[1761399986297,11.53647521,192.67,192.65,0.1]
[1761399991819,22.88,192.71,192.66,0.65]
[1761399991820,25.4916397,192.71,192.66,0.65]
[1761399992005,36.0,192.69,192.66,0.65]
[1761399992403,10.87647521,192.7,192.66,0.65]
[1761399992796,36.0,192.69,192.66,0.65]
[1761399996223,36.66,192.69,192.66,0.65]
[1761399996520,36.0,192.69,192.65,0.1]
[1761399996716,0.66,192.68,192.65,0.75]
[1761399996927,36.66,192.69,192.65,0.75]
[1761399999224,0.66,192.68,192.65,0.1]
[1761399999525,0.66,192.68,192.65,0.75]
[1761400001735,36.0,192.69,192.65,0.75]
[1761400002036,36.66,192.69,192.65,0.75]
[1761400002829,36.0,192.69,192.65,0.75]
[1761400003008,0.66,192.68,192.65,0.75]
[1761400003605,36.66,192.69,192.65,0.75]
[1761400004132,36.0,192.69,192.65,0.75]
[1761400004332,0.66,192.68,192.65,0.75]
[1761400004638,10.87647521,192.67,192.65,0.1]
[1761400005633,10.87647521,192.67,192.65,0.75]
[1761400006031,0.66,192.68,192.65,0.75]
[1761400006032,0.66,192.66,192.65,0.1]
[1761400007037,2.6116397,192.67,192.65,0.1]
[1761400008034,0.66,192.66,192.65,0.1]
[1761400008408,36.62,192.66,192.65,0.1]
[1761400009629,47.49647521,192.66,192.65,0.1]
[1761400012845,52.68696623,192.66,192.65,0.1]
[1761400017029,47.49647521,192.66,192.65,0.1]
[1761400018345,49.44811491,192.66,192.65,0.1]
[1761400019437,13.48811491,192.66,192.65,0.1]
[1761400019651,49.42811491,192.66,192.65,0.1]
[1761400020939,13.48811491,192.66,192.65,0.1]
[1761400021135,49.42811491,192.66,192.65,0.1]
[1761400022155,54.61860593,192.66,192.65,0.1]
[1761400023024,10.87647521,192.66,192.65,0.1]
[1761400023226,10.87647521,192.67,192.65,0.77]
[1761400023958,46.83647521,192.67,192.65,0.77]
[1761400029243,35.96,192.67,192.65,0.77]
[1761400030355,125.08,192.68,192.65,0.77]
[1761400030560,161.04,192.68,192.65,0.77]
[1761400030753,125.08,192.68,192.65,0.77]
[1761400031065,138.14,192.68,192.65,0.77]
[1761400031259,102.2,192.68,192.65,0.77]
[1761400031438,35.94,192.69,192.65,0.77]
[1761400035648,11.59647521,192.68,192.65,0.77]
[1761400035961,13.54811491,192.68,192.65,0.77]
[1761400038969,12.82811491,192.68,192.65,0.77]
[1761400039471,13.54811491,192.68,192.65,0.77]
[1761400040475,36.65,192.67,192.65,0.1]
[1761400040676,38.6016397,192.67,192.65,0.1]
[1761400040851,52.93051116,192.67,192.65,0.1]
[1761400042381,37.89952961,192.67,192.65,0.1]
[1761400042580,5.19152498,192.66,192.65,0.1]
[1761400042885,37.89952961,192.67,192.65,0.1]
[1761400043177,43.09105459,192.67,192.65,0.1]
[1761400044085,12.83600482,192.66,192.65,0.1]
[1761400044450,18.0275298,192.66,192.65,0.1]
[1761400044751,23.21802082,192.66,192.65,0.1]
[1761400047280,125.41802082,192.66,192.65,0.1]
[1761400051477,161.35802082,192.66,192.65,0.1]
[1761400055390,161.33802082,192.66,192.65,0.1]
[1761400059407,125.41802082,192.66,192.65,0.1]
[1761400059609,161.33802082,192.66,192.65,0.1]
[1761400062204,125.41802082,192.66,192.65,0.1]
[1761400062412,161.33802082,192.66,192.65,0.1]
[1761400068925,118.26800019,192.66,192.65,0.1]
[1761400069215,118.26800019,192.66,192.65,0.76]
[1761400069216,148.99647521,192.66,192.65,0.76]
[1761400069510,48.04600482,192.66,192.65,0.76]
[1761400071193,51.98780717,192.66,192.65,0.76]
[1761400071409,53.23733678,192.66,192.65,0.76]
[1761400073701,53.23733678,192.66,192.65,0.1]
[1761400073916,53.23733678,192.66,192.65,0.77]
[1761400076020,53.23733678,192.66,192.65,0.1]
[1761400077022,53.91733678,192.66,192.65,0.1]
[1761400077514,53.23733678,192.66,192.65,0.1]
[1761400078112,53.91733678,192.66,192.65,0.1]
[1761400078333,59.1078278,192.66,192.65,0.1]
[1761400084443,57.85829819,192.66,192.65,0.1]
[1761400084631,59.1078278,192.66,192.65,0.1]
[1761400087643,64.10594624,192.66,192.65,0.1]
[1761400088144,10.87647521,192.62,192.61,0.1]
[1761400088350,48.04600482,192.62,192.61,0.1]
[1761400088652,48.71600482,192.62,192.61,0.1]
[1761400088837,50.12506092,192.62,192.61,0.1]
[1761400090336,14.20506092,192.62,192.61,0.1]
[1761400090649,50.12506092,192.62,192.61,0.1]
[1761400090846,50.12506092,192.62,192.61,0.77]
[1761400090847,152.32506092,192.62,192.61,0.77]
[1761400095650,116.40506092,192.62,192.61,0.77]
[1761400095853,152.32506092,192.62,192.61,0.77]
[1761400102036,116.40506092,192.62,192.61,0.77]
[1761400102264,152.32506092,192.62,192.61,0.77]
[1761400102740,153.02896186,192.62,192.61,0.77]
[1761400104639,153.02896186,192.62,192.61,0.1]
[1761400105755,153.02896186,192.62,192.61,0.81]
[1761400107347,117.10896186,192.62,192.61,0.81]
[1761400108454,104.2790561,192.62,192.61,6.00183842]
[1761400108673,102.2,192.62,192.61,6.00183842]
[1761400110647,0.65,192.69,192.61,20.93486504]
[1761400110648,10.87647521,192.68,192.61,20.93486504]
[1761400110857,46.79647521,192.72,192.64,1.95343055]
[1761400111062,10.87647521,192.69,192.65,0.71]
[1761400112180,10.87647521,192.69,192.66,5.19049102]
[1761400112676,10.87647521,192.69,192.67,0.71]
[1761400113172,10.87647521,192.69,192.67,5.9000255]
[1761400113378,12.82990576,192.69,192.67,5.9000255]
[1761400113568,12.82990576,192.69,192.68,0.71]
[1761400114383,12.82990576,192.69,192.68,5.89995225]
[1761400115160,10.87647521,192.69,192.68,5.89995225]
[1761400119087,10.87647521,192.69,192.68,0.71]
[1761400120278,12.82990576,192.69,192.68,0.71]
[1761400128190,12.82990576,192.69,192.68,5.89995225]
[1761400128381,12.82990576,192.69,192.66,5.90023069]
[1761400128692,10.87647521,192.67,192.66,5.90023069]
[1761400128997,10.87647521,192.67,192.66,5.19023069]
[1761400129502,10.87647521,192.67,192.66,5.90023069]
[1761400140910,13.48990576,192.67,192.63,5.91129938]
[1761400141212,12.82990576,192.64,192.63,5.19129938]
[1761400141590,13.48990576,192.64,192.61,0.1]
[1761400141790,0.66,192.64,192.61,0.82]
[1761400142015,1.95343055,192.62,192.61,0.82]
[1761400142614,12.82990576,192.63,192.61,6.0117862]
[1761400142803,25.91026956,192.63,192.61,6.0117862]
[1761400145829,25.91026956,192.63,192.62,5.91156889]
[1761400146206,25.91026956,192.63,192.62,5.19156889]
[1761400146505,12.82990576,192.63,192.62,5.19156889]
[1761400148218,12.82990576,192.63,192.61,6.01182425]
[1761400150117,10.87647521,192.63,192.61,6.01182425]
[1761400155740,13.0803638,192.64,192.62,0.72]
[1761400155926,10.87647521,192.67,192.62,2.67343055]
[1761400156236,10.87647521,192.67,192.62,0.72]
[1761400156541,10.87647521,192.67,192.63,0.72]
[1761400157244,10.87647521,192.67,192.64,5.1910299]
[1761400158152,10.87647521,192.67,192.65,0.72]
[1761400159741,10.87647521,192.67,192.65,5.91066519]
[1761400163350,12.82990576,192.67,192.65,5.91066519]
[1761400164736,10.87647521,192.66,192.63,0.67]
[1761400165854,10.87647521,192.66,192.64,5.1910299]
[1761400166054,10.87647521,192.66,192.64,5.8610299]
[1761400166228,10.87647521,192.66,192.64,5.1910299]
[1761400166431,10.87647521,192.66,192.65,0.67]
[1761400166927,10.87647521,192.66,192.62,12.97892223]
[1761400166928,10.87647521,192.65,192.62,13.64892223]
[1761400167143,10.87647521,192.65,192.63,0.67]
[1761400168353,10.87647521,192.66,192.63,5.86129938]
[1761400168739,10.87647521,192.66,192.64,0.67]
[1761400170258,10.87647521,192.66,192.65,5.19076044]
[1761400170430,12.12576493,192.67,192.65,5.19076044]
[1761400170757,12.12576493,192.67,192.65,5.86076044]
[1761400171942,12.12576493,192.67,192.66,0.67]
[1761400175760,10.87647521,192.67,192.66,0.67]
[1761400175953,12.12576493,192.67,192.66,0.67]
[1761400176359,12.12576493,192.67,192.65,5.86061535]
[1761400176558,12.12576493,192.67,192.66,0.67]
[1761400177957,12.12576493,192.67,192.64,0.67]
[1761400178263,12.12576493,192.67,192.63,0.67]
[1761400180853,12.12576493,192.67,192.64,5.1910299]
[1761400181659,12.12576493,192.67,192.65,0.67]
[1761400183369,12.12576493,192.67,192.65,5.86057121]
[1761400184878,12.81576493,192.67,192.64,0.67]
[1761400185254,12.12576493,192.67,192.64,0.67]
[1761400185774,10.87647521,192.67,192.64,0.67]
[1761400187152,10.87647521,192.67,192.65,5.19076044]
[1761400187678,10.87647521,192.67,192.66,0.67]
[1761400188458,10.87647521,192.68,192.66,0.67]
[1761400190968,10.87647521,192.68,192.67,5.19022162]
[1761400191974,10.87647521,192.68,192.67,5.85022162]
[1761400192761,10.87647521,192.68,192.65,12.97690111]
[1761400192762,0.67,192.7,192.65,12.97690111]
[1761400192969,10.87647521,192.68,192.66,0.66]
[1761400193356,10.87647521,192.71,192.66,0.66]
[1761400193682,1.24928972,192.7,192.66,0.66]
[1761400195173,10.87647521,192.68,192.67,5.19022162]
[1761400196266,10.87647521,192.68,192.63,18.16954783]
[1761400196472,10.87647521,192.68,192.67,0.66]
[1761400197077,10.87647521,192.68,192.64,0.66]
[1761400197774,10.87647521,192.68,192.65,18.16766155]
[1761400198174,10.87647521,192.68,192.66,0.66]
[1761400199483,10.87647521,192.68,192.67,5.19022162]
[1761400200368,10.87647521,192.68,192.67,5.85022162]
[1761400200861,10.87647521,192.68,192.67,5.19022162]
[1761400202073,10.87647521,192.68,192.63,18.16954783]
[1761400202272,10.87647521,192.68,192.66,0.66]
[1761400202868,0.72,192.67,192.64,0.66]
[1761400203378,12.84576493,192.68,192.64,0.66]
[1761400203774,10.87647521,192.66,192.65,5.19076044]
[1761400205170,11.59647521,192.66,192.63,13.63824845]
[1761400206377,11.59647521,192.66,192.63,18.82954783]
[1761400206766,10.87647521,192.66,192.64,0.66]
[1761400207080,1.24928972,192.65,192.63,18.16954783]
[1761400207268,1.96928972,192.65,192.63,18.16954783]
[1761400207587,10.87647521,192.65,192.63,18.82954783]
[1761400208081,10.87647521,192.66,192.63,18.16954783]
[1761400208258,10.87647521,192.66,192.64,0.66]
[1761400208583,10.87647521,192.66,192.65,5.19076044]
[1761400209074,10.87647521,192.66,192.65,5.85076044]
[1761400209462,10.87647521,192.66,192.65,5.19076044]
[1761400212380,1.24928972,192.68,192.63,12.97824845]
[1761400212689,10.87647521,192.67,192.64,0.66]
[1761400212982,10.87647521,192.68,192.64,0.66]
[1761400213157,11.59647521,192.68,192.64,0.66]
[1761400214372,12.84576493,192.68,192.65,5.19076044]
[1761400214765,12.84576493,192.68,192.65,5.85076044]
[1761400215272,11.59647521,192.68,192.65,5.85076044]
[1761400215480,10.87647521,192.68,192.66,0.66]
[1761400216887,10.87647521,192.68,192.67,5.19022162]
[1761400217791,10.87647521,192.68,192.67,5.85022162]
[1761400218788,10.87647521,192.68,192.66,0.66]
[1761400221083,10.87647521,192.68,192.67,5.19022162]
[1761400221284,10.87647521,192.68,192.67,5.88022162]
[1761400221483,10.87647521,192.68,192.67,5.19022162]
[1761400221667,12.12576493,192.68,192.67,5.19022162]
[1761400223186,10.87647521,192.68,192.67,5.19022162]
[1761400223491,12.12576493,192.69,192.67,5.88022162]
[1761400224695,12.82826793,192.69,192.67,5.88022162]
[1761400225295,12.82826793,192.69,192.65,18.16740969]
[1761400225495,13.53826793,192.69,192.66,0.69]
[1761400227396,13.53826793,192.69,192.67,5.19022162]
[1761400230868,13.53826793,192.69,192.65,18.16740969]
[1761400231075,10.87647521,192.66,192.65,5.19076044]
[1761400232003,10.87647521,192.66,192.64,5.1910299]
[1761400232179,11.58647521,192.66,192.64,5.1910299]
[1761400232894,12.82826793,192.66,192.63,5.19127343]
[1761400233095,35.88,192.69,192.63,5.19127343]
[1761400233096,10.87647521,192.64,192.63,5.19127343]
[1761400234392,10.87647521,192.64,192.62,5.19156889]
[1761400234597,10.87647521,192.64,192.63,0.69]
[1761400234980,10.87647521,192.66,192.63,0.69]
[1761400235179,13.53826793,192.66,192.63,0.69]
[1761400235406,5.19156889,192.64,192.63,0.69]
[1761400236189,5.19156889,192.64,192.63,5.88129938]
[1761400236394,5.19156889,192.64,192.61,0.1]
[1761400236395,10.87647521,192.63,192.61,0.1]
[1761400236685,2.66179272,192.63,192.61,5.29169309]
[1761400236889,11.58647521,192.62,192.61,5.29169309]
[1761400237210,26.46615484,192.62,192.61,5.29169309]
[1761400239111,10.87647521,192.62,192.61,5.29169309]
[1761400239311,10.87647521,192.62,192.61,5.98169309]
[1761400240104,10.87647521,192.62,192.61,5.29169309]
[1761400240895,16.1681683,192.62,192.61,5.29169309]
[1761400241098,10.87647521,192.62,192.61,5.98169309]
[1761400241310,22.88,192.64,192.61,18.96128916]
[1761400241510,10.87647521,192.63,192.62,0.69]
[1761400241806,10.87647521,192.63,192.61,18.27128916]
[1761400242008,10.87647521,192.63,192.61,18.96128916]
[1761400243906,10.87647521,192.63,192.62,5.88156889]
[1761400244492,5.29169309,192.64,192.62,5.88156889]
[1761400244695,10.87647521,192.66,192.63,0.69]
[1761400245209,10.87647521,192.68,192.63,2.64179272]
[1761400245398,11.58647521,192.68,192.64,0.69]
[1761400245795,10.87647521,192.68,192.64,0.69]
[1761400246002,10.87647521,192.68,192.65,5.19076044]
[1761400246403,10.87647521,192.68,192.65,5.88076044]
[1761400246717,10.87647521,192.68,192.66,0.69]
[1761400247896,10.87647521,192.68,192.67,5.19022162]
[1761400249500,11.58647521,192.68,192.67,5.19022162]
[1761400249817,11.58647521,192.68,192.65,13.66690111]
[1761400250419,10.87647521,192.68,192.65,12.97690111]
[1761400250720,10.87647521,192.68,192.66,0.67]
[1761400252217,10.87647521,192.68,192.65,12.97690111]
[1761400252410,10.87647521,192.68,192.65,18.83766155]
[1761400252710,10.87647521,192.68,192.66,0.67]
[1761400255033,10.87647521,192.68,192.67,5.19022162]
[1761400257733,10.87647521,192.69,192.67,5.86022162]
[1761400257935,11.55647521,192.69,192.67,5.19022162]
[1761400258424,10.87647521,192.67,192.65,5.19057286]
[1761400258606,10.87647521,192.67,192.65,5.85057286]
[1761400258811,12.97690111,192.68,192.66,0.66]
[1761400259127,10.87647521,192.67,192.66,0.66]
[1761400259323,10.87647521,192.68,192.66,0.66]
[1761400259528,10.87647521,192.68,192.67,5.19022162]
[1761400261535,24.54337632,192.68,192.66,5.19049102]
[1761400262339,23.85337632,192.68,192.66,5.85049102]
[1761400262636,10.87647521,192.68,192.66,5.85049102]
[1761400263033,10.87647521,192.68,192.63,18.16954783]
[1761400263216,10.87647521,192.68,192.66,0.66]
[1761400263417,10.87647521,192.68,192.64,0.66]
[1761400263625,11.56647521,192.68,192.64,0.66]
[1761400263835,10.87647521,192.68,192.64,0.66]
[1761400266348,10.87647521,192.68,192.65,5.19076044]
[1761400266725,26.46048601,192.68,192.66,0.66]
[1761400267330,10.87647521,192.68,192.66,0.66]
[1761400267952,10.87647521,192.68,192.67,5.19022162]
[1761400268535,10.87647521,192.68,192.67,5.85022162]
[1761400270553,10.87647521,192.68,192.67,5.19022162]
[1761400271044,11.56647521,192.68,192.67,5.19022162]
[1761400271230,13.51826793,192.68,192.67,5.19022162]
[1761400271735,13.51826793,192.68,192.65,5.85056066]
[1761400273955,29.10308831,192.68,192.65,5.85056066]
[1761400274331,10.87647521,192.68,192.66,0.66]
[1761400274535,10.87647521,192.69,192.66,0.66]
[1761400276954,10.87647521,192.69,192.67,5.19022162]
[1761400277151,11.56647521,192.69,192.67,5.19022162]
[1761400277353,10.87647521,192.69,192.67,5.19022162]
[1761400277555,10.87647521,192.69,192.67,5.85022162]
[1761400277853,23.85337632,192.69,192.67,5.85022162]
[1761400278360,10.87647521,192.69,192.67,5.85022162]
[1761400281554,10.87647521,192.69,192.65,18.16766155]
[1761400281757,10.87647521,192.69,192.67,0.68]
[1761400282066,11.53647521,192.69,192.66,0.68]
[1761400282267,10.87647521,192.7,192.66,0.68]
[1761400282444,10.87647521,192.73,192.67,37.83179272]
[1761400282640,11.53647521,192.73,192.67,37.83179272]
[1761400282861,11.53647521,192.73,192.68,0.68]
[1761400283243,10.87647521,192.71,192.68,0.68]
[1761400283444,10.87647521,192.71,192.69,5.18968291]
[1761400283950,2.61179272,192.73,192.69,5.18968291]
[1761400284151,0.66,192.73,192.7,0.68]
[1761400284362,2.61179272,192.73,192.7,0.68]
[1761400284856,10.87647521,192.73,192.7,0.68]
[1761400285063,12.12511859,192.73,192.7,0.68]
[1761400285461,10.87647521,192.71,192.7,0.68]
[1761400285870,1.90864338,192.73,192.7,5.86941359]
[1761400286776,1.90864338,192.73,192.7,5.18941359]
[1761400287150,1.90864338,192.73,192.7,0.68]
[1761400288672,1.90864338,192.73,192.71,5.18914431]
[1761400288673,1.24864338,192.73,192.71,5.18914431]
[1761400288973,10.87647521,192.73,192.71,5.18914431]
[1761400289150,10.87647521,192.73,192.72,0.68]
[1761400289476,1.90864338,192.75,192.72,0.68]
[1761400290268,10.87647521,192.75,192.72,0.68]
[1761400290574,10.87647521,192.75,192.73,5.18860582]
[1761400290783,58.76,192.79,192.73,18.16012037]
[1761400290784,10.87647521,192.76,192.73,18.16012037]
[1761400290974,10.87647521,192.76,192.74,0.68]
[1761400291368,10.87647521,192.76,192.73,18.16012037]
[1761400291576,11.53647521,192.76,192.73,18.84012037]
[1761400293760,1.24864338,192.77,192.73,18.84012037]
[1761400293761,10.87647521,192.78,192.73,18.84012037]
[1761400293971,10.87647521,192.76,192.73,18.84012037]
[1761400294363,10.87647521,192.76,192.74,0.68]
[1761400295088,10.87647521,192.76,192.75,5.18806744]
[1761400298582,10.87647521,192.78,192.75,18.83823605]
[1761400298793,10.87647521,192.78,192.76,0.68]
[1761400299169,10.87647521,192.79,192.76,0.68]
[1761400299569,10.87647521,192.79,192.77,5.18752917]
[1761400299776,11.53647521,192.79,192.77,5.18752917]
[1761400300171,24.78864338,192.81,192.77,18.15635211]
[1761400300387,24.78864338,192.81,192.78,0.68]
[1761400300388,10.87647521,192.8,192.78,0.68]
[1761400300986,10.87647521,192.81,192.78,0.68]
[1761400301595,10.87647521,192.81,192.79,5.18699102]
[1761400301969,11.53647521,192.81,192.79,5.18699102]
[1761400302169,10.87647521,192.81,192.79,5.18699102]
[1761400302571,10.87647521,192.81,192.79,5.86699102]
[1761400303476,10.87647521,192.81,192.8,0.68]